bitfinex-derivatives/quotes_BTCF0:USTF0_20241025
["timestamp","ask_amount","ask_price","bid_price","bid_amount"]
[1729876551315,0.21587461,67641.0,67640.0,0.07356508]
[1729876551512,0.073947,67639.0,67638.0,0.07356508]
[1729876551720,0.57667661,67639.0,67638.0,0.16895759]
[1729876551911,0.073948,67638.0,67637.0,0.07356508]
[1729876552110,0.073948,67638.0,67637.0,0.16905519]
[1729876552318,0.073948,67638.0,67636.0,0.0702]
[1729876552319,0.073949,67637.0,67636.0,0.14376508]
[1729876552526,0.073949,67637.0,67636.0,0.16570441]
[1729876552907,0.073949,67637.0,67636.0,0.09550441]
[1729876553329,0.073949,67637.0,67636.0,0.67212923]
[1729876553617,0.073949,67637.0,67636.0,0.45624862]
[1729876553814,0.073949,67637.0,67636.0,0.56961904]
[1729876554023,0.073949,67637.0,67636.0,0.09544862]
[1729876554415,0.3608,67637.0,67636.0,0.18369005]
[1729876554617,0.14192961,67639.0,67636.0,0.09544862]
[1729876554808,0.02954639,67638.0,67637.0,0.18371397]
[1729876555012,0.02954639,67638.0,67637.0,0.09544862]
[1729876555013,0.073948,67638.0,67637.0,0.09544862]
[1729876556412,0.073948,67638.0,67635.0,0.07359098]
[1729876556608,0.21588061,67636.0,67633.0,0.08826535]
[1729876556811,0.1186,67637.0,67632.0,0.08826535]
[1729876556812,0.073954,67633.0,67632.0,0.08826535]
[1729876557007,0.073954,67633.0,67632.0,0.09445959]
[1729876557722,0.1186,67637.0,67636.0,0.073951]
[1729876557723,0.07395,67637.0,67636.0,0.073951]
[1729876557911,0.07395,67637.0,67636.0,0.16841059]
[1729876558220,0.3608,67640.0,67639.0,0.073947]
[1729876558414,0.3608,67640.0,67639.0,0.25677286]
[1729876558611,0.3608,67640.0,67639.0,0.28107809]
[1729876558931,0.3608,67640.0,67639.0,0.4230077]
[1729876559110,0.0940346,67647.0,67640.0,0.073946]
[1729876559312,0.434739,67647.0,67645.0,0.07394]
[1729876559508,0.434739,67647.0,67646.0,0.20677915]
[1729876559916,0.073939,67647.0,67646.0,0.20677915]
[1729876560112,0.21586861,67647.0,67646.0,0.20677915]
[1729876560414,0.57666861,67647.0,67646.0,0.18288869]
[1729876560619,0.57666861,67647.0,67646.0,0.09445959]
[1729876561014,0.57666861,67647.0,67645.0,0.07372839]
[1729876561214,0.07394,67646.0,67645.0,0.07372839]
[1729876561420,0.07394,67646.0,67645.0,0.09467988]
[1729876561622,0.073942,67644.0,67643.0,0.05899913]
[1729876561826,0.57667161,67644.0,67643.0,0.05899913]
[1729876562020,0.50272961,67644.0,67641.0,0.14354892]
[1729876562317,0.50272961,67644.0,67643.0,0.073943]
[1729876562318,0.073942,67644.0,67643.0,0.073943]
[1729876562518,0.57667161,67644.0,67643.0,0.16845318]
[1729876562824,0.57667161,67644.0,67643.0,0.49845318]
[1729876563017,0.14192961,67647.0,67643.0,0.42451018]
[1729876563223,0.21587061,67647.0,67646.0,0.07394]
[1729876563520,0.21587061,67647.0,67646.0,0.16845018]
[1729876564220,0.21587061,67647.0,67646.0,0.09451018]
[1729876565624,0.72733922,67647.0,67643.0,0.40371242]
[1729876565921,0.72733922,67647.0,67628.0,0.46376297]
[1729876565922,0.073941,67645.0,67642.0,0.05898602]
[1729876566124,0.073949,67637.0,67636.0,0.07371242]
[1729876566332,0.3608,67637.0,67634.0,0.07374873]
[1729876566519,0.073953,67634.0,67633.0,0.07374873]
[1729876566819,0.21588261,67634.0,67633.0,0.16858838]
[1729876567416,0.21588261,67634.0,67633.0,0.09483965]
[1729876567619,0.21588261,67634.0,67633.0,0.09482051]
[1729876567814,0.21588261,67634.0,67632.0,0.07374423]
[1729876568017,0.21588261,67634.0,67628.0,0.073959]
[1729876568018,0.58548961,67633.0,67628.0,0.07376359]
[1729876568217,0.58548961,67633.0,67627.0,0.0884291]
[1729876568218,0.50272961,67629.0,67624.0,0.04427339]
[1729876568420,0.073965,67623.0,67622.0,0.04427339]
[1729876568617,0.073965,67623.0,67617.0,0.0590186]
[1729876568618,0.073967,67621.0,67617.0,0.0590186]
[1729876568826,0.073984,67605.0,67604.0,0.00076]
[1729876569017,0.21591361,67605.0,67604.0,0.09500432]
[1729876569326,0.21591361,67605.0,67590.0,0.3608]
[1729876569327,0.50272961,67606.0,67590.0,0.3608]
[1729876569523,0.50272961,67606.0,67599.0,0.00076]
[1729876569524,0.21592061,67600.0,67599.0,0.00076]
[1729876569723,0.21592061,67600.0,67599.0,0.09525069]
[1729876569724,0.073991,67600.0,67599.0,0.09525069]
[1729876569914,0.073991,67600.0,67599.0,0.16924169]
[1729876570116,0.3608,67606.0,67599.0,0.14268961]
[1729876570426,0.073986,67604.0,67603.0,0.073986]
[1729876570727,0.073986,67604.0,67596.0,0.3608]
[1729876570728,0.28720383,67604.0,67596.0,0.3608]
[1729876570923,0.28720383,67604.0,67603.0,0.073987]
[1729876571120,0.073986,67604.0,67603.0,0.073987]
[1729876571822,0.3608,67606.0,67605.0,0.073984]
[1729876572527,0.0022193,67620.0,67605.0,0.1337]
[1729876572723,0.0022193,67620.0,67617.0,0.073971]
[1729876572924,0.073968,67621.0,67617.0,0.21321783]
[1729876573231,0.21321783,67621.0,67611.0,0.3608]
[1729876573431,0.073977,67613.0,67612.0,0.16672768]
[1729876573822,0.21321783,67621.0,67612.0,0.09275168]
[1729876574021,0.21321783,67621.0,67613.0,0.09275168]
[1729876574022,0.073974,67615.0,67613.0,0.09275168]
[1729876574238,0.073974,67615.0,67611.0,0.434778]
[1729876574239,0.073974,67615.0,67614.0,0.09275168]
[1729876574722,0.073974,67615.0,67614.0,0.16672668]
[1729876575036,0.073969,67619.0,67614.0,0.09275168]
[1729876575329,0.073972,67616.0,67615.0,0.09275168]
[1729876575630,0.3608,67624.0,67615.0,0.09275168]
[1729876575831,0.3608,67624.0,67623.0,0.073965]
[1729876576022,0.434758,67630.0,67627.0,0.07396]
[1729876576221,0.3608,67639.0,67628.0,0.4312]
[1729876576437,0.073954,67633.0,67629.0,0.4962387]
[1729876576621,0.11856,67645.0,67632.0,0.073954]
[1729876576622,0.21321783,67637.0,67632.0,0.073954]
[1729876576825,0.21321783,67637.0,67633.0,0.09207625]
[1729876577118,0.21321783,67637.0,67632.0,0.073954]
[1729876577333,0.21321783,67637.0,67633.0,0.09207893]
[1729876577526,0.073954,67633.0,67632.0,0.073954]
[1729876577836,0.073954,67633.0,67632.0,0.1660698]
[1729876578732,0.28717183,67633.0,67632.0,0.0921158]
[1729876579435,0.073954,67633.0,67632.0,0.0921158]
[1729876579733,0.36224,67646.0,67632.0,0.09224674]
[1729876579933,0.073947,67640.0,67637.0,0.073949]
[1729876580236,0.073947,67639.0,67638.0,0.067]
[1729876580927,0.073957,67630.0,67629.0,0.33]
[1729876581122,0.28717483,67630.0,67629.0,0.48920425]
[1729876581338,0.28717483,67630.0,67629.0,0.48923155]
[1729876583027,0.073957,67630.0,67629.0,0.48923155]
[1729876583222,0.073957,67630.0,67629.0,0.56318955]
[1729876583429,0.3608,67640.0,67629.0,0.48923155]
[1729876583724,0.3608,67640.0,67630.0,0.09223155]
[1729876583929,0.3608,67640.0,67631.0,0.09223155]
[1729876583930,0.073955,67632.0,67631.0,0.09223155]
[1729876584123,0.28717283,67632.0,67631.0,0.09223155]
[1729876584530,0.28717283,67632.0,67619.0,0.10299565]
[1729876584531,0.073957,67630.0,67625.0,0.33]
[1729876584726,0.57401783,67626.0,67622.0,0.068]
[1729876584927,0.073965,67623.0,67622.0,0.068]
[1729876585130,0.073965,67623.0,67622.0,0.09270488]
[1729876585329,0.073965,67623.0,67615.0,0.02212791]
[1729876585330,0.073972,67616.0,67615.0,0.07021818]
[1729876585528,0.28718983,67616.0,67615.0,0.16307662]
[1729876586128,0.28718983,67616.0,67615.0,0.16296381]
[1729876586339,0.28718983,67616.0,67615.0,0.00221818]
[1729876587439,0.73086983,67616.0,67615.0,0.00221818]
[1729876587629,0.75118948,67616.0,67615.0,0.00221818]
[1729876588222,0.30750948,67616.0,67615.0,0.00221818]
[1729876590241,0.073992,67598.0,67597.0,0.073993]
[1729876590443,0.073988,67602.0,67601.0,0.073989]
[1729876590634,0.21321783,67603.0,67598.0,0.33]
[1729876590832,0.07399,67600.0,67599.0,0.09344106]
[1729876591032,0.21321783,67603.0,67598.0,0.403992]
[1729876591227,0.073991,67599.0,67598.0,0.403992]
[1729876591437,0.073991,67599.0,67598.0,0.49735306]
[1729876591934,0.073991,67599.0,67598.0,0.16735306]
[1729876592235,0.073988,67603.0,67602.0,0.073986]
[1729876592439,0.3608,67607.0,67599.0,0.21321783]
[1729876592625,0.36224,67617.0,67603.0,0.3608]
[1729876592626,0.073978,67611.0,67603.0,0.3608]
[1729876592830,0.073975,67614.0,67604.0,0.37434857]
[1729876593034,0.3608,67617.0,67609.0,0.3608]
[1729876593339,0.3608,67617.0,67616.0,0.073972]
[1729876593735,0.36232,67617.0,67616.0,0.073972]
[1729876593938,0.36232,67617.0,67614.0,0.07]
[1729876593939,0.07397,67618.0,67617.0,0.073971]
[1729876594143,0.07397,67618.0,67617.0,0.403971]
[1729876594836,0.21321783,67623.0,67617.0,0.403971]
[1729876595439,0.07397,67618.0,67617.0,0.33]
[1729876595933,0.073972,67616.0,67615.0,0.073973]
[1729876596237,0.073972,67616.0,67615.0,0.1661889]
[1729876596437,0.073972,67616.0,67615.0,0.4961889]
[1729876598231,0.073972,67616.0,67615.0,0.4222159]
[1729876598628,0.073973,67615.0,67613.0,0.08820076]
[1729876598835,0.28719283,67614.0,67613.0,0.07350053]
[1729876599235,0.28719283,67614.0,67613.0,0.16583256]
[1729876599537,0.28719283,67614.0,67613.0,0.16587177]
[1729876599734,0.28719283,67614.0,67610.0,0.3968]
[1729876599735,0.21321783,67614.0,67611.0,0.07352216]
[1729876599930,0.21321783,67614.0,67610.0,0.0668]
[1729876599931,0.073978,67611.0,67610.0,0.0668]
[1729876600144,0.073978,67611.0,67610.0,0.14032216]
[1729876600436,0.073978,67611.0,67610.0,0.0668]
[1729876601045,0.073974,67615.0,67610.0,0.14032216]
[1729876601240,0.07397,67618.0,67617.0,0.073971]
[1729876601837,0.3608,67625.0,67617.0,0.33]
[1729876602145,0.3608,67625.0,67624.0,0.073964]
[1729876602146,0.073963,67625.0,67624.0,0.073964]
[1729876602343,0.073963,67625.0,67624.0,0.23945898]
[1729876602535,0.073963,67625.0,67624.0,0.16593682]
[1729876603033,0.073963,67625.0,67624.0,0.23942212]
[1729876603230,0.07396,67629.0,67628.0,0.073958]
[1729876604251,0.07617553,67630.0,67629.0,0.073958]
[1729876604439,0.07617553,67630.0,67629.0,0.16575977]
[1729876604943,0.00221853,67630.0,67629.0,0.16575977]
[1729876607045,0.00156001,67633.0,67632.0,0.073955]
[1729876607243,0.21321783,67648.0,67638.0,0.073948]
[1729876607436,0.073946,67640.0,67639.0,0.066]
[1729876607636,0.073946,67640.0,67639.0,0.396]
[1729876608143,0.073946,67640.0,67639.0,0.469947]
[1729876608644,0.073946,67640.0,67639.0,0.396]
[1729876609443,0.073946,67640.0,67639.0,0.066]
[1729876610542,0.073946,67640.0,67639.0,0.139947]
[1729876610746,0.073946,67640.0,67639.0,0.500747]
[1729876611338,0.073946,67640.0,67639.0,0.4268]
[1729876611958,0.073946,67640.0,67636.0,0.07346018]
[1729876611959,0.3608,67640.0,67636.0,0.07346018]
[1729876612147,0.3608,67640.0,67628.0,0.08820076]
[1729876612148,0.073955,67632.0,67628.0,0.08810049]
[1729876612347,0.073956,67631.0,67629.0,0.16443438]
[1729876612649,0.3608,67632.0,67627.0,0.3966]
[1729876612650,0.073959,67628.0,67627.0,0.3966]
[1729876612837,0.073959,67628.0,67627.0,0.47056]
[1729876613550,0.073959,67628.0,67627.0,0.14056]
[1729876613940,0.073959,67628.0,67627.0,0.21399016]
[1729876614141,0.073959,67628.0,67627.0,0.0666]
[1729876616547,0.073959,67628.0,67627.0,0.14056]
[1729876617054,0.073959,67628.0,67627.0,0.21399016]
[1729876617356,0.073959,67628.0,67627.0,0.0666]
[1729876618250,0.07396,67627.0,67626.0,0.0686]
[1729876618455,0.07396,67627.0,67624.0,0.00221822]
[1729876618761,0.434763,67625.0,67624.0,0.00221822]
[1729876620341,0.073979,67610.0,67609.0,0.07343016]
[1729876620648,0.21321783,67612.0,67608.0,0.14177208]
[1729876620848,0.21321783,67612.0,67604.0,0.07357208]
[1729876621151,0.073983,67606.0,67605.0,0.16605634]
[1729876621455,0.073983,67606.0,67605.0,0.07360641]
[1729876622157,0.073983,67606.0,67605.0,0.16602591]
[1729876622356,0.21321783,67612.0,67605.0,0.16602591]
[1729876622550,0.073982,67609.0,67608.0,0.14758071]
[1729876622759,0.073982,67609.0,67608.0,0.23989436]
[1729876623058,0.073982,67609.0,67608.0,0.16629265]
[1729876623254,0.073982,67609.0,67608.0,0.07359334]
[1729876623755,0.073982,67607.0,67606.0,0.07359334]
[1729876623958,0.073986,67604.0,67603.0,0.07359334]
[1729876624260,0.073987,67603.0,67602.0,0.00221882]
[1729876625247,0.073996,67594.0,67593.0,0.07359334]
[1729876625554,0.073999,67592.0,67591.0,0.0672]
[1729876625756,0.073999,67592.0,67579.0,0.3608]
[1729876625757,0.074,67591.0,67587.0,0.07359334]
[1729876625959,0.4348,67591.0,67587.0,0.07359334]
[1729876626259,0.074006,67585.0,67584.0,0.404007]
[1729876626573,0.434795,67596.0,67584.0,0.42276356]
[1729876626779,0.434795,67596.0,67595.0,0.073995]
[1729876626780,0.3608,67596.0,67595.0,0.073995]
[1729876627359,0.02027899,67600.0,67591.0,0.43431395]
[1729876627665,0.21321783,67603.0,67596.0,0.073994]
[1729876627866,0.073992,67598.0,67597.0,0.0646]
[1729876628157,0.3608,67605.0,67604.0,0.073986]
[1729876628362,0.434784,67605.0,67604.0,0.073986]
[1729876628748,0.3608,67605.0,67604.0,0.073986]
[1729876629950,0.3608,67617.0,67602.0,0.05876023]
[1729876629951,0.073978,67611.0,67602.0,0.27197806]
[1729876630156,0.57401783,67617.0,67608.0,0.05876023]
[1729876630157,0.073974,67615.0,67608.0,0.05876023]
[1729876630461,0.073969,67620.0,67617.0,0.073971]
[1729876630654,0.020319,67624.0,67617.0,0.073971]
[1729876630655,0.073967,67621.0,67617.0,0.073971]
[1729876630853,0.07618926,67618.0,67617.0,0.073971]
[1729876631349,0.07618926,67618.0,67617.0,0.403971]
[1729876631555,0.00221926,67618.0,67617.0,0.403971]
[1729876633356,0.28940709,67618.0,67617.0,0.33]
[1729876633561,0.28940709,67618.0,67617.0,0.388784]
[1729876633760,0.28940709,67618.0,67617.0,0.33]
[1729876633957,0.28940709,67618.0,67617.0,0.388784]
[1729876634272,0.28940709,67618.0,67617.0,0.33]
[1729876635055,0.21543709,67618.0,67609.0,0.058784]
[1729876635263,0.57401783,67613.0,67607.0,0.058784]
[1729876635466,0.21321783,67608.0,67605.0,0.058784]
[1729876635662,0.073983,67606.0,67605.0,0.388784]
[1729876635863,0.073983,67606.0,67605.0,0.058784]
[1729876635864,0.434783,67606.0,67605.0,0.058784]
[1729876636067,0.434783,67606.0,67604.0,0.1325]
[1729876636068,0.073984,67605.0,67604.0,0.1325]
[1729876637066,0.073984,67605.0,67604.0,0.206486]
[1729876637267,0.07398,67609.0,67604.0,0.191284]
[1729876637568,0.07398,67609.0,67608.0,0.073981]
[1729876637873,0.3608,67620.0,67607.0,0.43431395]
[1729876638055,0.073975,67614.0,67613.0,0.05881151]
[1729876638366,0.073975,67614.0,67613.0,0.073976]
[1729876639068,0.3608,67620.0,67611.0,0.07351395]
[1729876639263,0.3608,67620.0,67617.0,0.073971]
[1729876639765,0.3608,67620.0,67616.0,0.05884506]
[1729876639766,0.073971,67617.0,67616.0,0.05884506]
[1729876640260,0.21543709,67618.0,67615.0,0.05884506]
[1729876640459,0.21543709,67618.0,67604.0,0.1325]
[1729876640460,0.073976,67613.0,67612.0,0.05884506]
[1729876640660,0.073982,67607.0,67605.0,0.05884506]
[1729876640865,0.3608,67606.0,67599.0,0.05884506]
[1729876641065,0.3608,67606.0,67589.0,0.1375]
[1729876641066,0.073991,67599.0,67598.0,0.05884506]
[1729876641268,0.21321783,67599.0,67596.0,0.05884506]
[1729876641464,0.28721083,67597.0,67596.0,0.05890017]
[1729876641659,0.073994,67596.0,67595.0,0.05890017]
[1729876641968,0.21321783,67597.0,67594.0,0.05890017]
[1729876642158,0.073994,67596.0,67595.0,0.05890017]
[1729876643871,0.21321783,67597.0,67593.0,0.05890017]
[1729876644065,0.073994,67596.0,67595.0,0.05890017]
[1729876644859,0.073995,67595.0,67594.0,0.05890017]
[1729876645066,0.073995,67595.0,67589.0,0.54101395]
[1729876645067,0.074001,67590.0,67589.0,0.54101395]
[1729876645374,0.28721883,67590.0,67589.0,0.4675]
[1729876645560,0.21321783,67590.0,67588.0,0.07351395]
[1729876645756,0.074005,67586.0,67585.0,0.07351395]
[1729876645968,0.28722283,67586.0,67585.0,0.16665533]
[1729876646268,0.02957107,67585.0,67584.0,0.07351395]
[1729876646574,0.074008,67583.0,67582.0,0.33]
[1729876646756,0.07401,67582.0,67581.0,0.07351395]
[1729876646961,0.07401,67582.0,67581.0,0.1667674]
[1729876647275,0.57401783,67586.0,67578.0,0.47974768]
[1729876647468,0.3608,67586.0,67582.0,0.05892483]
[1729876647662,0.28722583,67583.0,67582.0,0.05892483]
[1729876648171,0.074012,67580.0,67579.0,0.07351395]
[1729876648364,0.074012,67580.0,67579.0,0.14752695]
[1729876648674,0.074008,67584.0,67583.0,0.074008]
[1729876649467,0.11848,67592.0,67583.0,0.09278863]
[1729876649675,0.073999,67592.0,67591.0,0.073998]
[1729876650058,0.073999,67592.0,67591.0,0.14763852]
[1729876650270,0.073999,67592.0,67591.0,0.073998]
[1729876650469,0.073999,67592.0,67591.0,0.14763852]
[1729876650667,0.074,67591.0,67590.0,0.20444052]
[1729876650865,0.074,67591.0,67590.0,0.1308]
[1729876651267,0.074,67591.0,67590.0,0.20444052]
[1729876651467,0.074,67591.0,67590.0,0.29693954]
[1729876651675,0.074,67591.0,67590.0,0.20444052]
[1729876651976,0.074001,67590.0,67589.0,0.07363788]
[1729876652172,0.28721883,67590.0,67581.0,0.4286]
[1729876652373,0.21321783,67590.0,67583.0,0.074008]
[1729876652770,0.074007,67584.0,67583.0,0.074008]
[1729876653377,0.074004,67587.0,67586.0,0.074005]
[1729876654865,0.074006,67586.0,67585.0,0.074005]
[1729876655068,0.28721983,67590.0,67587.0,0.074003]
[1729876655268,0.074003,67588.0,67587.0,0.074003]
[1729876656178,0.074007,67585.0,67584.0,0.074006]
[1729876656682,0.074002,67589.0,67587.0,0.074004]
[1729876657180,0.074003,67588.0,67587.0,0.074003]
[1729876657371,0.074006,67586.0,67585.0,0.074005]
[1729876657773,0.074001,67590.0,67581.0,0.4286]
[1729876658276,0.3608,67595.0,67581.0,0.4286]
[1729876658480,0.073997,67594.0,67593.0,0.073997]
[1729876659381,0.3608,67595.0,67590.0,0.07363788]
[1729876659565,0.3608,67595.0,67594.0,0.073996]
[1729876660376,0.256,67595.0,67594.0,0.403996]
[1729876660580,0.07398,67609.0,67594.0,1.85070133]
[1729876660777,0.073983,67606.0,67605.0,0.41969364]
[1729876660977,0.073983,67606.0,67605.0,0.3608]
[1729876661270,0.073983,67606.0,67603.0,0.07361705]
[1729876661271,0.21321783,67609.0,67603.0,0.07361705]
[1729876661476,0.434784,67605.0,67603.0,0.05890713]
[1729876661678,0.434784,67605.0,67601.0,0.05890713]
[1729876661975,0.434784,67605.0,67597.0,0.05891217]
[1729876661976,0.21321783,67602.0,67597.0,0.05891217]
[1729876662176,0.073992,67598.0,67597.0,0.05891217]
[1729876662375,0.21321783,67602.0,67597.0,0.05891217]
[1729876662675,0.073992,67598.0,67597.0,0.05891217]
[1729876663378,0.073995,67595.0,67594.0,0.07361705]
[1729876663678,0.28721283,67595.0,67594.0,0.07361705]
[1729876663879,0.28721283,67595.0,67592.0,0.07361705]
[1729876663880,0.073998,67593.0,67592.0,0.07361705]
[1729876664069,0.073999,67592.0,67591.0,0.07361705]
[1729876664270,0.073999,67592.0,67591.0,0.09251627]
[1729876664670,0.073999,67592.0,67591.0,0.16624445]
[1729876664872,0.073999,67592.0,67591.0,0.09251627]
[1729876666284,0.3608,67598.0,67587.0,0.33]
[1729876667179,0.074003,67588.0,67587.0,0.33]
[1729876668673,0.3608,67592.0,67586.0,0.0597578]
[1729876668879,0.074006,67585.0,67584.0,0.1274978]
[1729876669271,0.28722383,67585.0,67584.0,0.45757258]
[1729876669584,0.28722383,67585.0,67584.0,0.0685]
[1729876670280,0.28722383,67585.0,67584.0,0.12757258]
[1729876670676,0.28722383,67585.0,67584.0,0.0685]
[1729876670984,0.074008,67583.0,67581.0,0.05907258]
[1729876671281,0.074011,67581.0,67580.0,0.05907258]
[1729876671797,0.074011,67581.0,67580.0,0.38907258]
[1729876672285,0.074011,67581.0,67580.0,0.33]
[1729876672584,0.074011,67581.0,67580.0,0.6908]
[1729876673086,0.074011,67581.0,67580.0,0.33]
[1729876673288,0.074013,67579.0,67578.0,0.06133184]
[1729876673473,0.33169783,67579.0,67572.0,0.05911211]
[1729876673677,0.074021,67572.0,67571.0,0.3608]
[1729876674380,0.074021,67572.0,67571.0,0.56402998]
[1729876674587,0.21321783,67573.0,67571.0,0.56402998]
[1729876674780,0.21321783,67573.0,67572.0,0.20322998]
[1729876674781,0.28723683,67573.0,67572.0,0.20322998]
[1729876676079,0.28723683,67573.0,67572.0,0.20250061]
[1729876676283,0.21624586,67573.0,67572.0,0.20250061]
[1729876676987,0.21624586,67573.0,67572.0,0.20250416]
[1729876677181,0.21624586,67573.0,67572.0,0.09238328]
[1729876679180,0.21624586,67573.0,67572.0,0.18094441]
[1729876680184,0.074019,67573.0,67572.0,0.18094441]
[1729876680687,0.21624586,67573.0,67572.0,0.18094441]
[1729876681487,0.21624586,67573.0,67572.0,0.09238328]
[1729876681783,0.21624586,67573.0,67572.0,0.16617314]
[1729876681986,0.21624586,67573.0,67572.0,0.07378986]
[1729876682288,0.074021,67572.0,67571.0,0.07378986]
[1729876682587,0.21624786,67572.0,67571.0,0.16612688]
[1729876683182,0.21624786,67572.0,67568.0,0.07378986]
[1729876683491,0.074015,67578.0,67567.0,0.07378986]
[1729876683492,0.14222686,67569.0,67567.0,0.07378986]
[1729876683676,0.21625186,67568.0,67567.0,0.07378986]
[1729876683876,0.074033,67566.0,67565.0,0.07378986]
[1729876684076,0.434833,67566.0,67564.0,0.40378986]
[1729876684290,0.074036,67564.0,67562.0,0.07378986]
[1729876684588,0.074038,67562.0,67560.0,0.074039]
[1729876684782,0.3608,67566.0,67561.0,0.42264402]
[1729876684986,0.3608,67566.0,67562.0,0.16637807]
[1729876685185,0.434834,67566.0,67565.0,0.05896873]
[1729876685379,0.074038,67563.0,67561.0,0.40373405]
[1729876685686,0.14222686,67562.0,67561.0,0.33]
[1729876685880,0.14222686,67562.0,67561.0,0.49689976]
[1729876686283,0.21626586,67562.0,67561.0,0.40369173]
[1729876686487,0.21626586,67562.0,67561.0,0.33]
[1729876687486,0.21626586,67562.0,67561.0,0.40404]
[1729876687788,0.14222686,67562.0,67561.0,0.47773173]
[1729876688186,0.14222686,67562.0,67561.0,0.40404]
[1729876688494,0.21626586,67562.0,67561.0,0.40404]
[1729876689793,0.21626586,67562.0,67561.0,0.33]
[1729876690784,0.21626586,67562.0,67561.0,0.404033]
[1729876691294,0.21626586,67562.0,67561.0,0.57065287]
[1729876691590,0.21626586,67562.0,67561.0,0.5706732]
[1729876691782,0.47924,67572.0,67561.0,0.56514676]
[1729876691988,0.47924,67572.0,67571.0,0.05894386]
[1729876692185,0.21625186,67569.0,67568.0,0.074025]
[1729876692391,0.21625186,67569.0,67568.0,0.16675085]
[1729876693098,0.14222686,67569.0,67568.0,0.16675085]
[1729876693399,0.074009,67583.0,67568.0,0.74275271]
[1729876693585,0.074009,67583.0,67581.0,0.074011]
[1729876693996,0.57703686,67582.0,67581.0,0.33]
[1729876694310,0.57703686,67582.0,67579.0,0.0663]
[1729876694311,0.074012,67580.0,67579.0,0.0663]
[1729876694803,0.14222686,67581.0,67578.0,0.33]
[1729876694989,0.074013,67579.0,67578.0,0.33]
[1729876695293,0.14222686,67581.0,67578.0,0.05898546]
[1729876695294,0.11844,67580.0,67578.0,0.05898546]
[1729876695488,0.11844,67580.0,67577.0,0.05898546]
[1729876695690,0.074015,67577.0,67576.0,0.05898546]
[1729876695900,0.21624186,67577.0,67576.0,0.33]
[1729876696301,0.21624186,67577.0,67576.0,0.05898546]
[1729876696598,0.020256,67588.0,67576.0,0.092569]
[1729876696799,0.020256,67588.0,67575.0,0.3608]
[1729876696800,0.074004,67588.0,67586.0,0.074004]
[1729876696997,0.074004,67588.0,67587.0,0.1362]
[1729876697389,0.074004,67588.0,67587.0,0.28395267]
[1729876697599,0.074004,67588.0,67587.0,0.3021496]
[1729876697792,0.074,67591.0,67590.0,0.074]
[1729876698099,0.3608,67593.0,67592.0,0.073999]
[1729876698293,0.3608,67593.0,67592.0,0.14775245]
[1729876698697,0.3608,67593.0,67592.0,0.16573117]
[1729876698995,0.3608,67593.0,67592.0,0.23948366]
[1729876698996,0.57702486,67593.0,67592.0,0.23948366]
[1729876699301,0.57702486,67593.0,67592.0,0.16548333]
[1729876699302,0.21622486,67593.0,67592.0,0.16548333]
[1729876699601,0.21622486,67593.0,67591.0,0.07375143]
[1729876699791,0.14222686,67592.0,67591.0,0.07375143]
[1729876699993,0.21622586,67592.0,67591.0,0.07375143]
[1729876700196,0.074,67591.0,67590.0,0.07375143]
[1729876700395,0.074,67591.0,67590.0,0.1655128]
[1729876701204,0.074,67591.0,67590.0,0.07375143]
[1729876701500,0.074002,67589.0,67588.0,0.07375143]
[1729876701896,0.074002,67589.0,67588.0,0.16563158]
[1729876702497,0.00222015,67595.0,67588.0,0.30492977]
[1729876702704,0.00222015,67595.0,67594.0,0.43452834]
[1729876702909,0.00222015,67595.0,67594.0,0.52615692]
[1729876703223,0.00222015,67595.0,67594.0,0.52642458]
[1729876703511,0.073985,67605.0,67603.0,0.073986]
[1729876703702,0.073984,67605.0,67604.0,0.0641]
[1729876703904,0.073984,67605.0,67604.0,0.202786]
[1729876704905,0.073984,67605.0,67604.0,0.1288]
[1729876705502,0.073976,67613.0,67612.0,0.073975]
[1729876705810,0.073973,67616.0,67615.0,0.073971]
[1729876706501,0.07618927,67619.0,67618.0,0.07397]
[1729876707012,0.00221927,67619.0,67618.0,0.07397]
[1729876707600,0.07618827,67619.0,67618.0,0.07397]
[1729876708600,0.00221927,67619.0,67615.0,0.69156]
[1729876708802,0.073972,67616.0,67615.0,0.764773]
[1729876709012,0.00221927,67619.0,67618.0,0.07397]
[1729876709903,0.00221927,67619.0,67616.0,0.21330119]
[1729876709904,0.57410119,67631.0,67616.0,0.21330119]
[1729876710101,0.073965,67623.0,67622.0,0.3608]
[1729876710415,0.073965,67623.0,67622.0,0.434765]
[1729876710911,0.073965,67623.0,67622.0,0.073965]
[1729876711114,0.23297835,67631.0,67617.0,0.07397]
[1729876711115,0.073969,67619.0,67617.0,0.07397]
[1729876712112,0.073969,67619.0,67618.0,0.07397]
[1729876712713,0.073966,67622.0,67621.0,0.073966]
[1729876715416,0.3608,67624.0,67613.0,0.33]
[1729876715617,0.3608,67624.0,67613.0,0.073976]
[1729876715618,0.073975,67614.0,67613.0,0.073976]
[1729876715813,0.073975,67614.0,67613.0,0.434776]
[1729876716015,0.073975,67614.0,67613.0,0.073976]
[1729876716216,0.073975,67614.0,67613.0,0.434776]
[1729876716524,0.073976,67613.0,67612.0,0.0667]
[1729876716833,0.073976,67613.0,67607.0,0.36301851]
[1729876716834,0.073981,67608.0,67607.0,0.43700051]
[1729876717321,0.073981,67608.0,67607.0,0.76700051]
[1729876718213,0.3608,67623.0,67607.0,1.37015891]
[1729876718416,0.3608,67623.0,67619.0,0.28726919]
[1729876718417,0.073968,67620.0,67619.0,0.28726919]
[1729876719516,0.3608,67623.0,67619.0,0.21330119]
[1729876719719,0.3608,67623.0,67622.0,0.073966]
[1729876720909,0.434765,67623.0,67622.0,0.073966]
[1729876721123,0.073967,67621.0,67620.0,0.0689]
[1729876724717,0.073967,67621.0,67615.0,0.073973]
[1729876724922,0.073967,67621.0,67607.0,0.69385851]
[1729876724923,0.073977,67612.0,67611.0,0.073977]
[1729876725920,0.02019845,67621.0,67611.0,0.14212361]
[1729876726127,0.073968,67620.0,67619.0,0.073969]
[1729876726425,0.073968,67620.0,67619.0,0.21609261]
[1729876727318,0.073968,67620.0,67619.0,0.073969]
[1729876728134,0.3608,67623.0,67613.0,0.3608]
[1729876728135,0.14212361,67622.0,67613.0,0.3608]